fUST/lending_fUST_20250220
["ID","MTS","AMOUNT","RATE_DAILY","PERIOD"]
[353704249,1739994646750,-500.0,0.00013863,2]
[353704250,1739994646760,-500.0,0.00013863,2]
[353704251,1739994646769,-761.72,0.00013863,2]
[353704252,1739994646779,-500.0,0.00013863,2]
[353704253,1739994646789,-500.0,0.00013863,2]
[353704254,1739994646798,-500.0,0.00013863,2]
[353704255,1739994646808,-500.0,0.00013863,2]
[353704256,1739994646819,-500.0,0.00013863,2]
[353704257,1739994646829,-779.99,0.00013863,2]
[353704258,1739994646839,-500.0,0.00013863,2]
[353704259,1739994646849,-500.0,0.00013863,2]
[353704260,1739994646859,-500.0,0.00013863,2]
[353704261,1739994646869,-500.0,0.00013863,2]
[353704262,1739994646879,-500.0,0.00013863,2]
[353704263,1739994646890,-500.0,0.00013863,2]
[353704264,1739994646900,-500.0,0.00013863,2]
[353704266,1739994646911,-498.03471358,0.00013863,2]
[353704269,1739994646940,-1.96528642,0.00013863,2]
[353704272,1739994646951,-500.0,0.00013863,2]
[353704274,1739994646961,-500.0,0.00013863,2]
[353704275,1739994646970,-500.0,0.00013863,2]
[353704277,1739994646979,-500.0,0.00013863,2]
[353704279,1739994646988,-565.31,0.00013863,2]
[353704281,1739994646997,-213.10427045,0.00013863,2]
[353704284,1739994647008,-500.0,0.00013863,2]
[353704286,1739994647019,-500.0,0.00013863,2]
[353704288,1739994647028,-616.57622723,0.00013863,2]
[353704289,1739994647037,-500.0,0.00013863,2]
[353704291,1739994647047,-775.73,0.00013863,2]
[353704293,1739994647057,-500.0,0.00013863,2]
[353704295,1739994647066,-500.0,0.00013863,2]
[353704297,1739994647076,-500.0,0.00013863,2]
[353704299,1739994647086,-288.29066589,0.00013863,2]
[353704301,1739994647095,-500.0,0.00013863,2]
[353704304,1739994647105,-500.0,0.00013863,2]
[353704306,1739994647115,-500.0,0.00013863,2]
[353704308,1739994647125,-500.0,0.00013863,2]
[353704310,1739994647134,-500.0,0.00013863,2]
[353704312,1739994647143,-500.0,0.00013863,2]
[353704314,1739994647152,-500.0,0.00013863,2]
[353704316,1739994647164,-500.0,0.00013863,2]
[353704318,1739994647173,-500.0,0.00013863,2]
[353704320,1739994647183,-500.0,0.00013863,2]
[353704322,1739994647193,-500.0,0.00013863,2]
[353704324,1739994647203,-500.0,0.00013863,2]
[353704326,1739994647212,-500.0,0.00013863,2]
[353704328,1739994647221,-500.0,0.00013863,2]
[353704329,1739994647232,-500.0,0.00013863,2]
[353704331,1739994647242,-500.0,0.00013863,2]
[353704334,1739994647252,-500.0,0.00013863,2]
[353704336,1739994647262,-500.0,0.00013863,2]
[353704343,1739994647325,-500.0,0.00013863,2]
[353704346,1739994647339,-500.0,0.00013863,2]
[353704348,1739994647353,-500.0,0.00013863,2]
[353704350,1739994647363,-500.0,0.00013863,2]
[353704352,1739994647373,-539.86,0.00013863,2]
[353704354,1739994647383,-322.49901301,0.00013863,2]
[353704356,1739994647392,-502.51363962,0.00013863,2]
[353704358,1739994647401,-500.0,0.00013863,2]
[353704360,1739994647412,-500.0,0.00013863,2]
[353704361,1739994647421,-500.0,0.00013863,2]
[353704364,1739994647431,-500.0,0.00013863,2]
[353704366,1739994647440,-1171.45,0.00013863,2]
[353704368,1739994647449,-500.0,0.00013863,2]
[353704370,1739994647459,-500.0,0.00013863,2]
[353704372,1739994647468,-2720.91,0.00013863,2]
[353704374,1739994647477,-500.0,0.00013863,2]
[353704376,1739994647486,-384.910382,0.00013863,2]
[353704378,1739994647495,-500.0,0.00013863,2]
[353704380,1739994647504,-1094.49,0.00013863,2]
[353704382,1739994647513,-500.0,0.00013863,2]
[353704384,1739994647522,-500.0,0.00013863,2]
[353704386,1739994647531,-830.75,0.00013863,2]
[353704388,1739994647543,-500.0,0.00013863,2]
[353704390,1739994647553,-500.0,0.00013863,2]
[353704392,1739994647562,-1198.49,0.00013863,2]
[353704394,1739994647571,-500.0,0.00013863,2]
[353704396,1739994647581,-692.65,0.00013863,2]
[353704398,1739994647590,-1188.3,0.00013863,2]
[353704400,1739994647600,-3116.07,0.00013863,2]
[353704402,1739994647611,-500.0,0.00013863,2]
[353704404,1739994647621,-500.0,0.00013863,2]
[353704406,1739994647630,-500.0,0.00013863,2]
[353704408,1739994647639,-500.0,0.00013863,2]
[353704410,1739994647651,-500.0,0.00013863,2]
[353704412,1739994647662,-500.0,0.00013863,2]
[353704414,1739994647671,-500.0,0.00013863,2]
[353704416,1739994647681,-500.0,0.00013863,2]
[353704418,1739994647691,-9128.91261817,0.00013863,2]
[353704420,1739994647705,-623.05738183,0.00013863,2]
[353704422,1739994647714,-500.0,0.00013863,2]
[353704424,1739994647723,-500.0,0.00013863,2]
[353704426,1739994647733,-799.24,0.00013863,2]
[353704428,1739994647742,-500.0,0.00013863,2]
[353704430,1739994647752,-500.0,0.00013863,2]
[353704432,1739994647762,-500.0,0.00013863,2]
[353704434,1739994647772,-500.0,0.00013863,2]
[353704436,1739994647782,-500.0,0.00013863,2]
[353704438,1739994647792,-1140.83,0.00013863,2]
[353704441,1739994647812,-221.29965399,0.00013863,2]
[353704444,1739994647830,-177.69597362,0.00013863,2]
[353704447,1739994647850,-500.0,0.00013863,2]
[353704450,1739994647870,-500.0,0.00013863,2]
[353704453,1739994647889,-1175.9,0.00013863,2]
[353704456,1739994647905,-500.0,0.00013863,2]
[353704459,1739994647928,-457.02130959,0.00013863,2]
[353704462,1739994647943,-500.0,0.00013863,2]
[353704465,1739994647960,-500.0,0.00013863,2]
[353704468,1739994647981,-526.28,0.00013863,2]
[353704471,1739994648002,-500.0,0.00013863,2]
[353704473,1739994648015,-500.0,0.00013863,2]
[353704476,1739994648035,-500.0,0.00013863,2]
[353704479,1739994648051,-447.01958492,0.00013863,2]
[353704482,1739994648068,-500.0,0.00013863,2]
[353704484,1739994648082,-500.0,0.00013863,2]
[353704487,1739994648099,-500.0,0.00013863,2]
[353704489,1739994648115,-500.0,0.00013863,2]
[353704492,1739994648130,-500.0,0.00013863,2]
[353704495,1739994648145,-500.0,0.00013863,2]
[353704497,1739994648164,-500.0,0.00013863,2]
[353704500,1739994648179,-500.0,0.00013863,2]
[353704502,1739994648195,-500.0,0.00013863,2]
[353704505,1739994648210,-500.0,0.00013863,2]
[353704507,1739994648225,-500.0,0.00013863,2]
[353704510,1739994648240,-500.0,0.00013863,2]
[353704512,1739994648255,-500.0,0.00013863,2]
[353704515,1739994648269,-500.0,0.00013863,2]
[353704517,1739994648284,-892.99,0.00013863,2]
[353704520,1739994648299,-500.0,0.00013863,2]
[353704523,1739994648313,-500.0,0.00013863,2]
[353704525,1739994648328,-500.0,0.00013863,2]
[353704527,1739994648339,-500.0,0.00013863,2]
[353704529,1739994648349,-500.0,0.00013863,2]
[353704531,1739994648359,-500.0,0.00013863,2]
[353704533,1739994648369,-297.04781736,0.00013863,2]
[353704536,1739994648378,-2159.61,0.00013863,2]
[353704538,1739994648388,-500.0,0.00013863,2]
[353704540,1739994648397,-500.0,0.00013863,2]
[353704541,1739994648407,-500.0,0.00013863,2]
[353704544,1739994648419,-500.0,0.00013863,2]
[353704546,1739994648428,-500.0,0.00013863,2]
[353704548,1739994648438,-500.0,0.00013863,2]
[353704550,1739994648448,-1264.48,0.00013863,2]
[353704552,1739994648457,-500.0,0.00013863,2]
[353704554,1739994648467,-500.0,0.00013863,2]
[353704556,1739994648477,-501.89557744,0.00013863,2]
[353704577,1739994648663,-500.0,0.00013863,2]
[353704579,1739994648675,-500.0,0.00013863,2]
[353704581,1739994648685,-500.0,0.00013863,2]
[353704583,1739994648695,-500.0,0.00013863,2]
[353704585,1739994648704,-2363.05,0.00013863,2]
[353704587,1739994648714,-500.0,0.00013863,2]
[353704589,1739994648723,-500.0,0.00013863,2]
[353704591,1739994648734,-1079.67,0.00013863,2]
[353704593,1739994648744,-6370.63,0.00013863,2]
[353704595,1739994648754,-500.0,0.00013863,2]
[353704597,1739994648763,-500.0,0.00013863,2]
[353704599,1739994648773,-500.0,0.00013863,2]
[353704601,1739994648783,-500.0,0.00013863,2]
[353704603,1739994648793,-1311.75,0.00013863,2]
[353704605,1739994648804,-2449.29,0.00013863,2]
[353704607,1739994648814,-379.5129141,0.00013863,2]
[353704609,1739994648824,-500.0,0.00013863,2]
[353704611,1739994648834,-500.0,0.00013863,2]
[353704613,1739994648844,-500.0,0.00013863,2]
[353704615,1739994648854,-934.61,0.00013863,2]
[353704617,1739994648864,-500.0,0.00013863,2]
[353704619,1739994648879,-500.0,0.00013863,2]
[353704621,1739994648889,-500.0,0.00013863,2]
[353704623,1739994648899,-500.0,0.00013863,2]
[353704625,1739994648908,-500.0,0.00013863,2]
[353704627,1739994648919,-500.0,0.00013863,2]
[353704629,1739994648930,-500.0,0.00013863,2]
[353704631,1739994648939,-501.65443903,0.00013863,2]
[353704633,1739994648949,-500.0,0.00013863,2]
[353704635,1739994648959,-2409.06,0.00013863,2]
[353704637,1739994648969,-1572.98,0.00013863,2]
[353704639,1739994648979,-500.0,0.00013863,2]
[353704641,1739994648989,-500.0,0.00013863,2]
[353704643,1739994649000,-500.0,0.00013863,2]
[353704646,1739994649010,-500.0,0.00013863,2]
[353704648,1739994649020,-507.24,0.00013863,2]
[353704650,1739994649030,-9076.95,0.00013863,2]
[353704652,1739994649039,-500.0,0.00013863,2]
[353704654,1739994649049,-500.0,0.00013863,2]
[353704656,1739994649058,-501.38521472,0.00013863,2]
[353704657,1739994649068,-1313.63,0.00013863,2]
[353704659,1739994649078,-500.0,0.00013863,2]
[353704662,1739994649087,-500.0,0.00013863,2]
[353704664,1739994649097,-500.0,0.00013863,2]
[353704666,1739994649107,-1949.7,0.00013863,2]
[353704668,1739994649119,-500.0,0.00013863,2]
[353704670,1739994649129,-500.0,0.00013863,2]
[353704672,1739994649139,-500.0,0.00013863,2]
[353704674,1739994649148,-708.48,0.00013863,2]
[353704675,1739994649158,-872.8,0.00013863,2]
[353704677,1739994649170,-500.0,0.00013863,2]
[353704680,1739994649180,-500.0,0.00013863,2]
[353704681,1739994649190,-3593.72,0.00013863,2]
[353704684,1739994649200,-500.0,0.00013863,2]
[353704686,1739994649209,-500.0,0.00013863,2]
[353704687,1739994649219,-500.0,0.00013863,2]
[353704689,1739994649228,-500.0,0.00013863,2]
[353704692,1739994649238,-500.0,0.00013863,2]
[353704694,1739994649249,-300.92491055,0.00013863,2]
[353704696,1739994649258,-623.55835108,0.00013863,2]
[353704698,1739994649268,-500.0,0.00013863,2]
[353704700,1739994649278,-3776.89,0.00013863,2]
[353704702,1739994649287,-522.21733561,0.00013873,2]
[353704704,1739994649296,-500.0,0.00013873,2]
[353704706,1739994649306,-1071.854575,0.00013897,2]
[353704708,1739994649315,-1071.854575,0.00013897,2]
[353704710,1739994649325,-459.394077,0.00013897,2]
[353704712,1739994649335,-459.394077,0.00013897,2]
[353704713,1739994649346,-151.0,0.000139,2]
[353704716,1739994649355,-151.0,0.000139,2]
[353704717,1739994649365,-151.0,0.000139,2]
[353704719,1739994649375,-151.0,0.000139,2]
[353704721,1739994649385,-151.0,0.000139,2]
[353704724,1739994649395,-151.0,0.000139,2]
[353704726,1739994649405,-151.0,0.000139,2]
[353704728,1739994649415,-5184.7837934,0.00013927,2]
[353704730,1739994649425,-751.26935303,0.00013927,2]
[353704732,1739994649434,-246.31571168,0.0001394,2]
[353704734,1739994649443,-502.0355659,0.00013945,2]
[353704736,1739994649453,-500.0,0.00013945,2]
[353704738,1739994649462,-365.41627296,0.00013945,2]
[353704740,1739994649471,-500.0,0.00013945,2]
[353704742,1739994649479,-527.74516049,0.00013945,2]
[353704744,1739994649489,-500.0,0.00013945,2]
[353704746,1739994649499,-508.32267662,0.00013945,2]
[353704747,1739994649508,-500.0,0.00013945,2]
[353704749,1739994649517,-500.0,0.00013945,2]
[353704751,1739994649526,-500.0,0.00013945,2]
[353704753,1739994649536,-500.0,0.00013945,2]
[353704755,1739994649546,-500.0,0.00013945,2]
[353704757,1739994649555,-508.10830438,0.00013945,2]
[353704759,1739994649564,-525.71,0.00013945,2]
[353704761,1739994649573,-277.8004232,0.00013945,2]
[353704763,1739994649583,-500.0,0.00013945,2]
[353704765,1739994649592,-535.57991587,0.00013945,2]
[353704767,1739994649602,-500.0,0.00013945,2]
[353704769,1739994649611,-448.8857298,0.00013945,2]
[353704771,1739994649621,-500.0,0.00013945,2]
[353704773,1739994649631,-500.0,0.00013945,2]
[353704775,1739994649640,-500.0,0.00013945,2]
[353704777,1739994649652,-500.0,0.00013945,2]
[353704779,1739994649663,-500.0,0.00013945,2]
[353704781,1739994649673,-500.0,0.00013945,2]
[353704783,1739994649682,-448.24868411,0.00013945,2]
[353704785,1739994649692,-500.0,0.00013945,2]
[353704787,1739994649702,-500.0,0.00013945,2]
[353704789,1739994649711,-500.0,0.00013945,2]
[353704791,1739994649721,-801.74,0.00013945,2]
[353704793,1739994649731,-534.19,0.00013945,2]
[353704795,1739994649740,-778.36,0.00013945,2]
[353704797,1739994649750,-500.0,0.00013945,2]
[353704799,1739994649760,-265.15,0.00013945,2]
[353704801,1739994649770,-500.0,0.00013945,2]
[353704804,1739994649779,-500.0,0.00013945,2]
[353704806,1739994649789,-639.86,0.00013945,2]
[353704808,1739994649798,-500.0,0.00013945,2]
[353704810,1739994649808,-500.0,0.00013945,2]
[353704811,1739994649818,-500.0,0.00013945,2]
[353704814,1739994649827,-500.0,0.00013945,2]
[353704815,1739994649837,-500.0,0.00013945,2]
[353704818,1739994649846,-500.0,0.00013945,2]
[353704820,1739994649856,-761.72,0.00013945,2]
[353704821,1739994649865,-500.0,0.00013945,2]
[353704823,1739994649875,-500.0,0.00013945,2]
[353704825,1739994649884,-500.0,0.00013945,2]
[353704827,1739994649894,-500.0,0.00013945,2]
[353704829,1739994649903,-500.0,0.00013945,2]
[353704831,1739994649914,-779.99,0.00013945,2]
[353704834,1739994649924,-500.0,0.00013945,2]
[353704836,1739994649934,-500.0,0.00013945,2]
[353704838,1739994649943,-500.0,0.00013945,2]
[353704840,1739994649952,-500.0,0.00013945,2]
[353704842,1739994649961,-283.54312966,0.00013945,2]
[353704844,1739994649970,-555.08480055,0.00013945,2]
[353704846,1739994649980,-500.0,0.00013945,2]
[353704848,1739994649991,-500.0,0.00013945,2]
[353704850,1739994650000,-500.0,0.00013945,2]
[353704852,1739994650009,-500.0,0.00013945,2]
[353704854,1739994650019,-505.47012224,0.00013945,2]
[353704856,1739994650029,-500.0,0.00013945,2]
[353704858,1739994650038,-775.73,0.00013945,2]
[353704860,1739994650048,-406.85361087,0.00013945,2]
[353704862,1739994650057,-500.0,0.00013945,2]
[353704864,1739994650066,-500.0,0.00013945,2]
[353704866,1739994650075,-500.0,0.00013945,2]
[353704868,1739994650084,-500.0,0.00013945,2]
[353704870,1739994650095,-500.0,0.00013945,2]
[353704871,1739994650104,-210.23261153,0.00013945,2]
[353704873,1739994650114,-500.0,0.00013945,2]
[353704876,1739994650124,-324.71442361,0.00013945,2]
[353704878,1739994650134,-500.0,0.00013945,2]
[353704880,1739994650143,-500.0,0.00013945,2]
[353704881,1739994650152,-500.0,0.00013945,2]
[353704883,1739994650161,-500.0,0.00013945,2]
[353704885,1739994650171,-500.0,0.00013945,2]
[353704887,1739994650181,-500.0,0.00013945,2]
[353704890,1739994650191,-500.0,0.00013945,2]
[353704891,1739994650200,-500.0,0.00013945,2]
[353704893,1739994650210,-500.0,0.00013945,2]
[353704895,1739994650219,-500.0,0.00013945,2]
[353704897,1739994650228,-500.0,0.00013945,2]
[353704899,1739994650238,-500.0,0.00013945,2]
[353704902,1739994650248,-500.0,0.00013945,2]
[353704904,1739994650257,-500.0,0.00013945,2]
[353704906,1739994650267,-539.86,0.00013945,2]
[353704908,1739994650276,-500.0,0.00013945,2]
[353704909,1739994650285,-500.0,0.00013945,2]
[353704912,1739994650295,-500.0,0.00013945,2]
[353704914,1739994650305,-500.0,0.00013945,2]
[353704916,1739994650314,-1171.45,0.00013945,2]
[353704918,1739994650323,-500.0,0.00013945,2]
[353704920,1739994650333,-500.0,0.00013945,2]
[353704922,1739994650342,-2720.91,0.00013945,2]
[353704924,1739994650352,-500.0,0.00013945,2]
[353704926,1739994650361,-500.0,0.00013945,2]
[353704928,1739994650371,-1094.49,0.00013945,2]
[353704930,1739994650381,-500.0,0.00013945,2]
[353704932,1739994650390,-500.0,0.00013945,2]
[353704934,1739994650401,-830.75,0.00013945,2]
[353704936,1739994650410,-500.0,0.00013945,2]
[353704938,1739994650421,-500.0,0.00013945,2]
[353704940,1739994650431,-1198.49,0.00013945,2]
[353704942,1739994650440,-500.0,0.00013945,2]
[353704944,1739994650449,-692.65,0.00013945,2]
[353704946,1739994650459,-1188.3,0.00013945,2]
[353704948,1739994650469,-3116.07,0.00013945,2]
[353704950,1739994650479,-501.18957131,0.00013945,2]
[353704952,1739994650488,-500.0,0.00013945,2]
[353704954,1739994650497,-500.0,0.00013945,2]
[353704956,1739994650507,-500.0,0.00013945,2]
[353704958,1739994650516,-500.0,0.00013945,2]
[353704960,1739994650525,-500.0,0.00013945,2]
[353704962,1739994650537,-500.0,0.00013945,2]
[353704964,1739994650547,-478.95994053,0.00013945,2]
[353704966,1739994650556,-9751.97,0.00013945,2]
[353704968,1739994650566,-500.0,0.00013945,2]
[353704970,1739994650575,-500.0,0.00013945,2]
[353704972,1739994650584,-799.24,0.00013945,2]
[353704974,1739994650593,-500.0,0.00013945,2]
[353704976,1739994650603,-500.0,0.00013945,2]
[353704979,1739994650613,-500.0,0.00013945,2]
[353704981,1739994650622,-500.0,0.00013945,2]
[353704983,1739994650632,-1140.83,0.00013945,2]
[353704985,1739994650642,-500.0,0.00013945,2]
[353704987,1739994650655,-1175.9,0.00013945,2]
[353704989,1739994650669,-500.0,0.00013945,2]
[353704991,1739994650681,-500.0,0.00013945,2]
[353704993,1739994650693,-500.0,0.00013945,2]
[353704995,1739994650709,-526.28,0.00013945,2]
[353704997,1739994650718,-500.0,0.00013945,2]
[353704999,1739994650730,-500.0,0.00013945,2]
[353705001,1739994650740,-500.0,0.00013945,2]
[353705003,1739994650750,-440.05178992,0.00013945,2]
[353705005,1739994650760,-500.0,0.00013945,2]
[353705007,1739994650769,-500.0,0.00013945,2]
[353705009,1739994650779,-500.0,0.00013945,2]
[353705011,1739994650788,-500.0,0.00013945,2]
[353705013,1739994650797,-500.0,0.00013945,2]
[353705015,1739994650807,-500.0,0.00013945,2]
[353705017,1739994650816,-500.0,0.00013945,2]
[353705019,1739994650826,-506.2000797,0.00013945,2]
[353705021,1739994650836,-308.91381926,0.00013945,2]
[353705023,1739994650846,-892.99,0.00013945,2]
[353705025,1739994650856,-502.22896325,0.00013945,2]
[353705027,1739994650866,-500.0,0.00013945,2]
[353705030,1739994650875,-500.0,0.00013945,2]
[353705032,1739994650885,-500.0,0.00013945,2]
[353705034,1739994650895,-2159.61,0.00013945,2]
[353705035,1739994650905,-500.0,0.00013945,2]
[353705037,1739994650915,-500.0,0.00013945,2]
[353705038,1739994650924,-500.0,0.00013945,2]
[353705039,1739994650933,-500.0,0.00013945,2]
[353705040,1739994650942,-500.0,0.00013945,2]
[353705041,1739994650952,-1264.48,0.00013945,2]
[353705042,1739994650962,-500.0,0.00013945,2]
[353705043,1739994650971,-500.0,0.00013945,2]
[353705044,1739994650981,-500.0,0.00013945,2]
[353705045,1739994650991,-500.0,0.00013945,2]
[353705046,1739994651001,-2363.05,0.00013945,2]
[353705047,1739994651010,-277.08587521,0.00013945,2]
[353705048,1739994651020,-456.71300349,0.00013945,2]
[353705049,1739994651029,-1079.67,0.00013945,2]
[353705054,1739994651129,-6370.63,0.00013945,2]
[353705056,1739994651139,-504.16024629,0.00013945,2]
[353705058,1739994651148,-500.0,0.00013945,2]
[353705060,1739994651157,-500.0,0.00013945,2]
[353705062,1739994651167,-500.0,0.00013945,2]
[353705064,1739994651176,-1311.75,0.00013945,2]
[353705066,1739994651186,-2449.29,0.00013945,2]
[353705068,1739994651195,-500.0,0.00013945,2]
[353705070,1739994651204,-500.0,0.00013945,2]
[353705072,1739994651213,-500.0,0.00013945,2]
[353705074,1739994651223,-934.61,0.00013945,2]
[353705076,1739994651231,-500.0,0.00013945,2]
[353705078,1739994651242,-500.0,0.00013945,2]
[353705080,1739994651251,-500.0,0.00013945,2]
[353705082,1739994651263,-500.0,0.00013945,2]
[353705084,1739994651272,-500.0,0.00013945,2]
[353705086,1739994651282,-500.0,0.00013945,2]
[353705088,1739994651291,-500.0,0.00013945,2]
[353705090,1739994651300,-2409.06,0.00013945,2]
[353705092,1739994651311,-1572.98,0.00013945,2]
[353705094,1739994651319,-500.0,0.00013945,2]
[353705096,1739994651328,-500.0,0.00013945,2]
[353705098,1739994651337,-500.0,0.00013945,2]
[353705100,1739994651346,-507.24,0.00013945,2]
[353705102,1739994651355,-9076.95,0.00013945,2]
[353705104,1739994651364,-500.0,0.00013945,2]
[353705106,1739994651374,-501.47185371,0.00013945,2]
[353705108,1739994651383,-1313.63,0.00013945,2]
[353705110,1739994651392,-500.0,0.00013945,2]
[353705112,1739994651402,-253.19610341,0.00013945,2]
[353705114,1739994651411,-500.0,0.00013945,2]
[353705116,1739994651422,-1949.7,0.00013945,2]
[353705118,1739994651431,-500.0,0.00013945,2]
[353705120,1739994651440,-500.0,0.00013945,2]
[353705122,1739994651449,-500.0,0.00013945,2]
[353705124,1739994651459,-708.48,0.00013945,2]
[353705126,1739994651468,-872.8,0.00013945,2]
[353705128,1739994651477,-506.40631908,0.00013945,2]
[353705130,1739994651486,-500.0,0.00013945,2]
[353705132,1739994651495,-3593.72,0.00013945,2]
[353705134,1739994651505,-500.0,0.00013945,2]
[353705136,1739994651514,-500.0,0.00013945,2]
[353705138,1739994651523,-500.0,0.00013945,2]
[353705140,1739994651533,-500.0,0.00013945,2]
[353705142,1739994651543,-391.442079,0.00013945,2]
[353705144,1739994651552,-3776.89,0.00013945,2]
[353705146,1739994651562,-420.0,0.00013966,2]
[353705148,1739994651571,-500.0,0.00013972,2]
[353705150,1739994651580,-4650.59588424,0.00013987,2]
[353705163,1739994651703,-13603.88041532,0.00013987,2]
[353705166,1739994651725,-500.0,0.00013698,2]
[353705169,1739994651738,-69193.54151302,0.00013987,2]
[353705171,1739994651749,-24985.14794646,0.00013988,2]
[353705173,1739994651758,-87448.01781258,0.00013991,2]
[353705175,1739994651768,-1071.854575,0.00013991,2]
[353705177,1739994651778,-1071.854575,0.00013991,2]
[353705178,1739994651787,-459.394077,0.00013991,2]
[353705181,1739994651797,-459.394077,0.00013991,2]
[353705182,1739994651806,-87448.01781258,0.00013993,2]
[353705185,1739994651817,-24985.14794646,0.00013998,2]
[353705186,1739994651826,-24985.14794646,0.00013999,2]
[353705188,1739994651836,-151.0,0.00014,2]
[353705191,1739994651846,-151.0,0.00014,2]
[353705193,1739994651855,-1316.83465032,0.00014,2]
[353705195,1739994651865,-151.0,0.00014,2]
[353705196,1739994651875,-1071.854575,0.00014027,2]
[353705199,1739994651886,-1071.854575,0.00014027,2]
[353705200,1739994651895,-459.394077,0.00014027,2]
[353705202,1739994651904,-459.394077,0.00014027,2]
[353705204,1739994651913,-500.0,0.00014027,2]
[353705206,1739994651923,-327.74060149,0.00014027,2]
[353705208,1739994651932,-500.0,0.00014027,2]
[353705210,1739994651941,-523.0185608,0.00014027,2]
[353705212,1739994651950,-500.0,0.00014027,2]
[353705214,1739994651959,-500.0,0.00014027,2]
[353705216,1739994651970,-500.0,0.00014027,2]
[353705218,1739994651979,-500.0,0.00014027,2]
[353705220,1739994651988,-500.0,0.00014027,2]
[353705222,1739994651997,-500.0,0.00014027,2]
[353705224,1739994652006,-500.0,0.00014027,2]
[353705226,1739994652016,-360.58575571,0.00014027,2]
[353705228,1739994652025,-500.0,0.00014027,2]
[353705230,1739994652035,-598.35,0.00014027,2]
[353705232,1739994652044,-500.0,0.00014027,2]
[353705234,1739994652053,-801.74,0.00014027,2]
[353705236,1739994652063,-534.19,0.00014027,2]
[353705238,1739994652072,-778.36,0.00014027,2]
[353705240,1739994652081,-500.0,0.00014027,2]
[353705242,1739994652091,-500.0,0.00014027,2]
[353705244,1739994652101,-500.0,0.00014027,2]
[353705246,1739994652111,-500.0,0.00014027,2]
[353705248,1739994652120,-500.0,0.00014027,2]
[353705250,1739994652129,-500.0,0.00014027,2]
[353705252,1739994652139,-503.36313524,0.00014027,2]
[353705254,1739994652148,-761.72,0.00014027,2]
[353705256,1739994652158,-500.0,0.00014027,2]
[353705258,1739994652170,-500.0,0.00014027,2]
[353705260,1739994652178,-500.0,0.00014027,2]
[353705262,1739994652188,-500.0,0.00014027,2]
[353705264,1739994652197,-511.23110889,0.00014027,2]
[353705266,1739994652207,-779.99,0.00014027,2]
[353705268,1739994652216,-500.0,0.00014027,2]
[353705270,1739994652225,-500.0,0.00014027,2]
[353705272,1739994652234,-500.0,0.00014027,2]
[353705274,1739994652243,-500.0,0.00014027,2]
[353705276,1739994652253,-500.0,0.00014027,2]
[353705278,1739994652263,-500.0,0.00014027,2]
[353705280,1739994652272,-500.0,0.00014027,2]
[353705282,1739994652282,-500.0,0.00014027,2]
[353705284,1739994652292,-775.73,0.00014027,2]
[353705286,1739994652301,-500.0,0.00014027,2]
[353705288,1739994652310,-500.0,0.00014027,2]